bitfinex-derivatives/quotes_SOLF0:USTF0_20251229
["timestamp","ask_amount","ask_price","bid_price","bid_amount"]
[1767030091221,3.51,123.45,123.4,0.0581329]
[1767030092020,3.51,123.48,123.41,3.24]
[1767030092213,3.51,123.48,123.43,0.05806049]
[1767030093623,10.8062,123.48,123.43,0.05806049]
[1767030099726,10.8049,123.5,123.43,3.29806049]
[1767030100115,10.8049,123.5,123.43,99.11806049]
[1767030100627,7.2952,123.49,123.43,99.11806049]
[1767030101418,10.8052,123.49,123.43,99.11806049]
[1767030105630,3.32,123.47,123.43,0.05806049]
[1767030105828,3.32,123.47,123.44,0.05445684]
[1767030106027,7.2958,123.48,123.44,0.05445684]
[1767030107720,10.6158,123.48,123.44,0.05445684]
[1767030111325,3.32,123.47,123.4,3.35]
[1767030112328,0.05445684,123.45,123.42,0.06217662]
[1767030116835,10.87205684,123.45,123.42,0.00217662]
[1767030131853,3.52,123.43,123.37,3.43]
[1767030132149,3.52,123.43,123.36,3.43]
[1767030132562,3.52,123.41,123.36,3.43]
[1767030132753,3.52,123.39,123.31,2.72782522]
[1767030132944,0.05417887,123.36,123.34,0.05836706]
[1767030135254,3.57417887,123.36,123.3,3.43]
[1767030135443,3.52,123.35,123.27,2.72782522]
[1767030135645,3.52,123.35,123.27,6.24782522]
[1767030136248,3.52289769,123.32,123.26,95.8]
[1767030136441,3.52289769,123.32,123.26,99.32]
[1767030136847,3.52289769,123.32,123.26,3.52]
[1767030137249,3.52289769,123.32,123.28,0.05881239]
[1767030140463,0.05289769,123.32,123.28,3.57881239]
[1767030143850,3.47,123.36,123.29,95.84]
[1767030144056,3.47,123.36,123.3,3.52]
[1767030144658,3.47,123.38,123.31,3.52]
[1767030144858,0.05705109,123.36,123.33,0.05138371]
[1767030160559,3.47,123.38,123.33,3.57138371]
[1767030161574,3.47,123.4,123.34,3.52]
[1767030161871,3.47,123.4,123.34,99.36]
[1767030162577,0.05219483,123.38,123.36,0.0569966]
[1767030165566,3.52219483,123.38,123.33,95.84]
[1767030166470,3.52219483,123.38,123.34,0.06106381]
[1767030177786,3.52219483,123.38,123.34,0.00106381]
[1767030180383,10.82389483,123.38,123.34,0.00106381]
[1767030180588,3.28,123.37,123.34,0.00106381]
[1767030191703,3.28,123.36,123.31,95.84]
[1767030192699,10.63647184,123.35,123.32,0.05722954]
[1767030194404,3.33297184,123.35,123.32,0.05722954]
[1767030197600,3.43,123.34,123.25,7.68553661]
[1767030197804,3.43,123.34,123.26,95.84]
[1767030198009,3.43,123.34,123.26,99.26]
[1767030198197,3.43,123.32,123.27,95.84]
[1767030198402,0.05674818,123.31,123.28,0.05604103]
[1767030203217,0.05674818,123.31,123.28,95.91604103]
[1767030222325,7.3033,123.36,123.29,3.42]
[1767030223324,0.05891401,123.34,123.31,0.05501854]
[1767030224927,3.43,123.37,123.31,3.47501854]
[1767030225121,3.43,123.37,123.31,3.42]
[1767030225323,3.43,123.37,123.33,7.3045]
[1767030225930,0.05189652,123.36,123.34,0.06133781]
[1767030229337,3.37,123.39,123.34,0.06133781]
[1767030229539,3.37,123.39,123.34,95.94133781]
[1767030230337,0.05114343,123.38,123.34,95.94133781]
[1767030234044,0.05114343,123.38,123.34,99.45133781]
[1767030237640,3.34114343,123.38,123.34,95.94133781]
[1767030238946,3.34114343,123.38,123.34,0.06133781]
[1767030239954,3.29,123.35,123.28,3.51]
[1767030240247,3.29,123.35,123.29,95.86]
[1767030240442,3.29,123.35,123.29,99.37]
[1767030240950,0.05528448,123.33,123.31,0.05248641]
[1767030241548,0.05528448,123.33,123.29,3.51]
[1767030242344,0.05528448,123.33,123.3,0.06183838]
[1767030265071,7.3034,123.36,123.3,3.42183838]
[1767030265375,3.36,123.37,123.32,3.36]
[1767030266172,0.05862175,123.36,123.33,0.05785749]
[1767030297502,0.05862175,123.36,123.33,3.26785749]
[1767030300602,3.34,123.41,123.34,3.21]
[1767030300809,3.34,123.43,123.37,2.73091628]
[1767030301003,3.34,123.43,123.38,3.21]
[1767030301502,3.34,123.45,123.38,3.21]
[1767030301700,0.05148023,123.43,123.4,0.05730137]
[1767030305106,3.34,123.46,123.41,5.94091628]
[1767030305410,3.34,123.49,123.42,3.21]
[1767030306314,0.02824814,123.47,123.44,0.05169418]
[1767030307311,0.02824814,123.47,123.44,3.26169418]
[1767030307500,3.34,123.5,123.44,3.26169418]
[1767030307704,3.34,123.52,123.47,2.73091628]
[1767030308705,10.6338,123.52,123.48,0.05623068]
[1767030309206,3.34,123.51,123.45,98.57091628]
[1767030309415,10.6341,123.51,123.45,2.73091628]
[1767030309613,10.6341,123.51,123.45,5.94091628]
[1767030310216,0.05344459,123.49,123.47,0.05484521]
[1767030315618,7.2932,123.53,123.47,0.05484521]
[1767030315619,10.6332,123.53,123.47,3.26484521]
[1767030316315,3.34,123.53,123.47,3.26484521]
[1767030317320,3.34,123.53,123.48,3.44]
[1767030318923,7.2923,123.54,123.48,3.44]
[1767030319111,3.31,123.55,123.5,0.05302532]
[1767030320615,10.6017,123.55,123.5,0.05302532]
[1767030322409,7.2917,123.55,123.5,3.49302532]
[1767030322620,3.31,123.57,123.5,3.49302532]
[1767030323615,7.2912,123.56,123.5,3.49302532]
[1767030324119,3.31,123.57,123.5,3.49302532]
[1767030324325,10.6007,123.57,123.51,3.44]
[1767030325514,0.05608015,123.55,123.51,3.44]
[1767030326517,3.31,123.54,123.49,3.44]
[1767030326723,3.31,123.54,123.47,3.44]
[1767030326925,3.31,123.54,123.48,3.44]
[1767030327422,0.0520638,123.52,123.5,0.05713489]
[1767030327626,10.6028,123.53,123.46,3.44]
[1767030327925,3.31,123.52,123.46,3.44]
[1767030328524,3.31,123.52,123.48,0.05788148]
[1767030328731,0.05897515,123.5,123.48,0.05788148]
[1767030341935,3.35897515,123.5,123.45,106.4375]
[1767030342651,0.05897515,123.5,123.46,3.4]
[1767030343035,0.05897515,123.5,123.47,0.05799277]
[1767030366462,3.5,123.51,123.47,3.60799277]
[1767030367470,0.0527844,123.5,123.47,3.60799277]
[1767030370062,3.3127844,123.5,123.47,0.05799277]
[1767030373079,3.26,123.54,123.47,3.60799277]
[1767030373383,3.26,123.56,123.49,3.55]
[1767030373682,3.26,123.56,123.5,3.55]
[1767030373974,3.26,123.56,123.5,99.29]
[1767030374181,0.06135366,123.54,123.5,99.29]
[1767030374572,0.06135366,123.54,123.5,106.5842]
[1767030375278,0.06135366,123.54,123.51,0.05647439]
[1767030376685,3.55135366,123.54,123.51,0.05647439]
[1767030386584,3.49,123.53,123.48,103.0157]
[1767030386987,3.49,123.53,123.48,106.5057]
[1767030387187,3.49,123.53,123.48,10.7857]
[1767030387383,3.49,123.53,123.48,106.5057]
[1767030387585,3.49,123.53,123.49,0.05987928]
[1767030397390,3.49,123.53,123.49,3.54987928]
[1767030398894,0.06135366,123.54,123.49,10.84497928]
[1767030399207,3.55135366,123.54,123.49,10.07600187]
[1767030400889,3.55135366,123.54,123.49,13.56600187]
[1767030402198,0.06135366,123.54,123.51,3.49]
[1767030402898,0.06135366,123.54,123.5,7.2944]
[1767030403297,0.06135366,123.54,123.5,10.7844]
[1767030403505,0.06135366,123.54,123.51,10.01482259]
[1767030403692,3.49,123.57,123.51,10.01482259]
[1767030403892,3.49,123.57,123.51,105.73482259]
[1767030404791,0.06135131,123.55,123.53,0.05899055]
[1767030409003,3.49,123.57,123.53,0.05899055]
[1767030410003,0.05352153,123.56,123.53,0.05899055]
[1767030412013,0.05352153,123.56,123.53,2.78001314]
[1767030412306,3.37,123.59,123.53,2.78001314]
[1767030412507,3.37,123.59,123.54,95.7]
[1767030412807,7.2892,123.6,123.54,95.7]
[1767030412808,3.37,123.61,123.54,95.7]
[1767030412998,3.37,123.63,123.58,2.72102259]
[1767030413194,3.37,123.63,123.58,98.42102259]
[1767030413401,3.42671421,123.62,123.59,0.06188368]
[1767030414102,0.05671421,123.62,123.59,0.06188368]
[1767030414803,0.05671421,123.62,123.59,95.76188368]
[1767030415206,0.05671421,123.62,123.59,103.05098368]
[1767030415503,0.05671421,123.62,123.59,105.77200627]
[1767030417703,0.05671421,123.62,123.59,0.06188368]
[1767030427710,0.05671421,123.62,123.59,95.72188368]
[1767030428115,16.04302844,123.65,123.6,2.72102259]
[1767030428320,16.04302844,123.65,123.61,95.66]
[1767030428511,16.04302844,123.65,123.6,2.72102259]
[1767030428712,16.04302844,123.65,123.61,95.66]
[1767030429113,0.04697045,123.64,123.62,0.05459623]
[1767030433722,3.36697045,123.64,123.61,88.61459623]
[1767030434227,0.04697045,123.64,123.61,88.61459623]
[1767030434426,0.04697045,123.64,123.6,7.2885]
[1767030434626,0.04697045,123.64,123.61,95.64]
[1767030434826,0.04697045,123.64,123.61,95.69469599]
[1767030435321,0.04697045,123.64,123.61,0.05469599]
[1767030435517,0.04697045,123.64,123.61,95.69469599]
[1767030439235,3.53697045,123.64,123.61,0.05469599]
[1767030441536,0.04697045,123.64,123.61,95.69469599]
[1767030442431,10.82327045,123.64,123.61,0.00469599]
[1767030442630,3.49,123.63,123.61,0.00469599]
[1767030443040,7.33327045,123.64,123.61,0.00469599]
[1767030443239,10.82327045,123.64,123.61,0.00469599]
[1767030445039,3.49,123.63,123.56,3.34]
[1767030445232,3.49,123.63,123.57,95.64]
[1767030445631,10.7775,123.62,123.57,95.64]
[1767030445832,3.49,123.62,123.57,98.98]
[1767030446147,0.05348253,123.61,123.58,0.05311792]
[1767030447631,0.05348253,123.61,123.58,95.69311792]
[1767030454336,3.54348253,123.61,123.58,0.05311792]
[1767030456540,0.05348253,123.61,123.58,3.39311792]
[1767030456738,0.00348253,123.61,123.58,3.39311792]
[1767030456939,19.53302844,123.65,123.59,3.34]
[1767030457141,16.04302844,123.65,123.61,3.34]
[1767030457946,0.05102376,123.64,123.62,0.057264]
[1767030459147,0.05102376,123.64,123.56,3.34]
[1767030459148,3.49,123.63,123.56,3.34]
[1767030459340,3.49,123.63,123.57,98.98]
[1767030459842,3.49,123.63,123.57,3.34]
[1767030460042,3.49,123.63,123.58,95.64]
[1767030460243,0.05803781,123.61,123.59,0.05687789]
[1767030460855,19.53302844,123.65,123.59,3.39687789]
[1767030461251,19.53302844,123.65,123.6,95.64]
[1767030461857,0.06131966,123.64,123.6,95.64]
[1767030468566,0.06131966,123.64,123.59,3.39687789]
[1767030468768,0.06131966,123.64,123.6,99.02]
[1767030471665,0.00131966,123.64,123.61,3.38]
[1767030472073,12.4943481,123.65,123.62,99.01]
[1767030473070,12.53503477,123.65,123.62,99.06211949]
[1767030475873,3.28,123.68,123.63,3.38]
[1767030476075,3.3,123.69,123.63,3.38]
[1767030476575,3.3,123.69,123.63,95.64]
[1767030476965,3.3,123.69,123.65,0.0585525]
[1767030479174,7.2846,123.67,123.61,3.44]
[1767030479373,3.3,123.68,123.62,3.44]
[1767030480177,0.05148008,123.66,123.64,0.05614395]
[1767030481075,3.3,123.65,123.61,95.64]
[1767030481475,3.3,123.65,123.59,106.3489]
[1767030481870,3.3,123.65,123.6,3.44]
[1767030482077,0.05820273,123.64,123.61,0.06073812]
[1767030482268,0.05820273,123.64,123.61,3.50073812]
[1767030488379,10.5846,123.67,123.61,10.78873812]
[1767030488679,3.3,123.67,123.61,10.78873812]
[1767030489479,0.05649372,123.65,123.61,10.78873812]
[1767030489977,3.35649372,123.65,123.61,0.06073812]
[1767030490176,0.05649372,123.65,123.61,3.50073812]
[1767030496284,7.2843,123.68,123.61,3.50073812]
[1767030496483,3.41,123.69,123.61,3.44]
[1767030496682,3.41,123.69,123.63,3.33]
[1767030497385,3.41,123.69,123.65,0.0619134]
[1767030498577,10.6934,123.69,123.65,0.0619134]
[1767030501090,10.694,123.68,123.65,0.0619134]
[1767030501290,3.41,123.67,123.65,0.0019134]
[1767030501781,10.6946,123.67,123.65,0.0019134]
[1767030502591,3.41,123.67,123.65,0.0019134]
[1767030502984,0.05951957,123.68,123.65,0.0019134]
[1767030505986,0.05951957,123.68,123.65,3.3319134]
[1767030508495,3.41,123.72,123.65,6.04728336]
[1767030508684,3.41,123.72,123.65,6.04536996]
[1767030508884,3.41,123.72,123.65,3.33]
[1767030509089,10.6917,123.72,123.65,10.6157]
[1767030509297,3.41,123.71,123.67,0.06051598]
[1767030510799,10.6922,123.71,123.67,0.06051598]
[1767030512688,113.2545,123.74,123.67,3.39051598]
[1767030512689,116.6645,123.74,123.67,3.39051598]
[1767030512996,3.41,123.74,123.67,6.10588594]
[1767030513292,7.281,123.74,123.68,3.33]
[1767030513600,7.281,123.74,123.67,10.06028594]
[1767030513601,3.41,123.76,123.7,3.38484169]
[1767030513907,3.41,123.79,123.71,3.33]
[1767030514200,3.41,123.78,123.71,3.33]
[1767030515090,0.05784445,123.76,123.71,3.33]
[1767030516288,0.05784445,123.76,123.72,3.33]
[1767030517200,0.05784445,123.76,123.73,0.0617122]
[1767030519589,3.41,123.75,123.68,3.33]
[1767030520393,10.6899,123.75,123.69,3.33]
[1767030520593,0.06091286,123.73,123.71,0.0550802]
[1767030521204,0.00091286,123.73,123.71,0.0550802]
[1767030525599,0.00091286,123.73,123.67,3.54]
[1767030526707,0.00091286,123.73,123.69,0.06123322]
[1767030528007,3.27091286,123.73,123.69,0.06123322]
[1767030528606,10.55201286,123.73,123.69,0.06123322]
[1767030529910,3.27091286,123.73,123.69,0.06123322]
[1767030536312,10.55191286,123.73,123.69,0.06123322]
[1767030542613,3.52,123.72,123.69,0.06123322]
[1767030547222,0.00091286,123.73,123.69,0.06123322]
[1767030547526,0.00091286,123.73,123.69,3.30123322]
[1767030547824,0.00091286,123.73,123.7,3.24]
[1767030548024,0.00091286,123.73,123.7,10.5225]
[1767030551126,0.00091286,123.73,123.7,3.24]
[1767030551919,0.00091286,123.73,123.69,0.06123322]
[1767030552519,0.00091286,123.73,123.69,3.30123322]
[1767030557123,0.00091286,123.73,123.69,0.06123322]
[1767030560629,10.66201286,123.73,123.69,0.06123322]
[1767030563533,3.38,123.72,123.69,0.00123322]
[1767030564239,0.00091286,123.73,123.69,0.00123322]
[1767030564440,0.00091286,123.73,123.69,3.33123322]
[1767030579253,3.38091286,123.73,123.69,3.33123322]
[1767030580354,0.00091286,123.73,123.69,3.33123322]
[1767030585260,3.38091286,123.73,123.69,0.00123322]
[1767030586355,3.53,123.72,123.69,0.00123322]
[1767030586550,3.53,123.72,123.65,98.99]
[1767030587151,7.2824,123.71,123.63,13.60198801]
[1767030587355,3.53,123.7,123.63,6.31528801]
[1767030587649,0.05938192,123.68,123.65,0.05420255]
[1767030608466,3.51,123.71,123.65,3.24420255]
[1767030608668,110.1187,123.76,123.65,3.19]
[1767030608669,3.51,123.73,123.65,3.19]
[1767030608863,3.51,123.73,123.67,3.19]
[1767030609460,3.51,123.75,123.69,3.25172149]
[1767030609666,3.51,123.75,123.69,3.19]
[1767030609966,3.51,123.75,123.69,10.4732]
[1767030610159,3.51,123.75,123.7,3.19]
[1767030610669,0.055869,123.74,123.71,0.05671797]
[1767030611371,0.055869,123.74,123.71,3.24671797]
[1767030611677,3.51,123.77,123.71,3.24671797]
[1767030612675,0.05383815,123.75,123.71,3.24671797]
[1767030613069,0.00383815,123.75,123.71,3.24671797]
[1767030614970,3.51,123.8,123.72,3.19]
[1767030615570,3.51,123.8,123.68,113.304]
[1767030615875,0.05481894,123.75,123.73,0.05998579]
[1767030616063,0.05183177,123.75,123.73,0.05998579]
[1767030618080,3.35183177,123.75,123.68,3.42]
[1767030618676,3.35183177,123.75,123.69,3.42]
[1767030618979,3.35183177,123.75,123.71,0.0571968]
[1767030631996,3.35183177,123.75,123.71,3.4771968]
[1767030633605,3.35183177,123.75,123.71,0.0571968]
[1767030635903,3.3,123.74,123.68,7.2834]
[1767030636302,3.3,123.74,123.68,10.7034]
[1767030636895,0.05736626,123.72,123.7,0.05530445]
[1767030637096,3.35736626,123.72,123.66,10.7045]
[1767030638000,3.35736626,123.72,123.68,0.05399081]
[1767030640000,3.3,123.7,123.68,0.00399081]
[1767030641006,3.3,123.71,123.68,0.00399081]
[1767030643003,0.05736626,123.72,123.68,0.00399081]
[1767030643204,0.05736626,123.72,123.68,3.42399081]
[1767030645011,0.05736626,123.72,123.68,0.00399081]
[1767030645998,3.52736626,123.72,123.68,0.00399081]
[1767030649906,10.80896626,123.72,123.68,0.00399081]
[1767030650307,3.52736626,123.72,123.68,0.00399081]
[1767030651013,0.05736626,123.72,123.68,3.49399081]
[1767030667622,128.30417781,123.81,123.68,3.49399081]
[1767030667623,7.2797,123.76,123.68,3.49399081]
[1767030667824,3.27,123.79,123.71,2.71226315]
[1767030668026,3.27,123.79,123.72,3.38]
[1767030668627,3.27,123.79,123.74,0.05374241]
[1767030668820,0.05449874,123.77,123.74,0.05374241]
[1767030671828,6.03676189,123.77,123.74,0.00374241]
[1767030673032,3.32449874,123.77,123.74,0.00374241]
[1767030676630,6.03676189,123.77,123.74,0.00374241]
[1767030679621,3.31,123.76,123.7,3.4]
[1767030680526,10.5893,123.76,123.7,10.6827]
[1767030680727,0.06141538,123.74,123.72,0.05298987]
[1767030680927,3.37141538,123.74,123.68,3.4]
[1767030681635,3.37141538,123.74,123.68,10.6839]
[1767030681934,3.37141538,123.74,123.7,0.05519163]
[1767030690838,3.31,123.73,123.67,98.94]
[1767030691344,3.31,123.73,123.65,3.4]
[1767030691841,3.36838366,123.7,123.68,0.00046092]
[1767030694845,0.05838366,123.7,123.68,0.00046092]
[1767030704961,3.31,123.73,123.68,10.68426092]
[1767030705855,0.05294409,123.72,123.68,10.68426092]
[1767030712670,0.05294409,123.72,123.69,7.2833]
[1767030712868,0.05294409,123.72,123.69,10.4933]
[1767030713063,0.00294409,123.72,123.7,3.21]
[1767030714572,0.00294409,123.72,123.7,10.4922]
[1767030717071,0.00294409,123.72,123.7,7.2822]
[1767030717767,0.00294409,123.72,123.7,10.5122]
[1767030720672,0.00294409,123.72,123.71,7.2822]
[1767030722977,3.3,123.77,123.71,3.23]
[1767030723177,3.3,123.8,123.72,98.79]
[1767030723382,3.3,123.82,123.74,3.23]
[1767030723569,3.3,123.82,123.78,7.278]
[1767030723973,0.06146311,123.81,123.79,3.28504915]
[1767030724172,0.00146311,123.81,123.79,0.05504915]
[1767030727578,3.30146311,123.81,123.76,106.0687]
[1767030727777,3.30146311,123.81,123.76,98.77]
[1767030728679,3.30146311,123.81,123.77,0.05342493]
[1767030729873,0.00146311,123.81,123.77,0.05342493]
[1767030734780,0.00146311,123.81,123.77,7.33192493]
[1767030734987,0.00146311,123.81,123.77,3.28342493]
[1767030735482,0.00146311,123.81,123.78,10.5079]
[1767030736286,0.00146311,123.81,123.79,7.2773]
[1767030737189,0.00146311,123.81,123.79,10.7273]
[1767030737379,0.00146311,123.81,123.79,106.2473]
[1767030738490,0.00146311,123.81,123.79,95.52]
[1767030739188,0.00146311,123.81,123.77,102.83172493]
[1767030739383,0.00146311,123.81,123.77,106.28172493]
[1767030740386,0.00146311,123.81,123.78,3.45]
[1767030740583,0.00146311,123.81,123.78,10.728]
[1767030742788,0.00146311,123.81,123.79,10.7273]
[1767030744099,0.00146311,123.81,123.79,7.2773]
[1767030745594,0.00146311,123.81,123.77,106.28162493]
[1767030748485,0.00146311,123.81,123.79,3.45]
[1767030749595,0.00146311,123.81,123.79,10.7271]
[1767030752697,0.00146311,123.81,123.79,3.45]
[1767030756607,0.00146311,123.81,123.77,106.28152493]
[1767030756806,0.00146311,123.81,123.78,3.45]
[1767030774528,0.00146311,123.81,123.78,10.728]
[1767030775827,15.83976628,123.85,123.8,3.36]
[1767030776134,15.83976628,123.85,123.8,6.06859623]
[1767030776431,15.83976628,123.85,123.81,95.48]
[1767030776925,0.0512343,123.84,123.81,95.48]
[1767030777934,0.0512343,123.84,123.81,95.53466901]
[1767030781237,0.0512343,123.84,123.81,98.89466901]
[1767030783236,0.0512343,123.84,123.81,95.53466901]
[1767030783430,3.3712343,123.84,123.79,95.48]
[1767030783739,0.0512343,123.84,123.8,6.06859623]
[1767030784434,0.0512343,123.84,123.81,0.05569858]
[1767030785637,0.0512343,123.84,123.81,3.41569858]
[1767030787847,3.32,123.89,123.82,105.46419623]
[1767030788250,3.32,123.89,123.83,95.48]
[1767030788856,0.06137239,123.87,123.85,0.05340603]
[1767030792158,0.00137239,123.87,123.85,0.05340603]
[1767030800454,3.42137239,123.87,123.81,2.70859623]
[1767030800654,3.42,123.87,123.81,2.70859623]
[1767030801047,3.42,123.87,123.8,98.16859623]
[1767030801546,0.06085993,123.85,123.82,0.05526945]
[1767030802654,0.06085993,123.85,123.78,4.23040529]
[1767030802655,10.75495993,123.85,123.78,4.23040529]
[1767030803549,10.75495993,123.85,123.78,11.50840529]
[1767030803752,10.75495993,123.85,123.8,0.05310519]
[1767030809151,3.48085993,123.85,123.8,0.05310519]
[1767030810352,0.06085993,123.85,123.8,0.05310519]
[1767030811772,0.06085993,123.85,123.81,7.2763]
[1767030812170,0.06085993,123.85,123.8,7.32990519]
[1767030817173,0.06085993,123.85,123.8,0.05310519]
[1767030818572,0.06085993,123.85,123.8,7.32990519]
[1767030820078,0.06085993,123.85,123.8,0.05310519]
[1767030824381,0.06085993,123.85,123.8,7.32990519]
[1767030824585,3.48085993,123.85,123.8,7.32990519]
[1767030825984,0.00085993,123.85,123.8,0.05310519]
[1767030826176,0.00085993,123.85,123.8,4.28351048]
[1767030826606,0.00085993,123.85,123.82,7.2752]
[1767030827294,0.00085993,123.85,123.83,7.2751]
[1767030827495,0.00085993,123.85,123.83,7.33084428]
[1767030827894,0.00085993,123.85,123.84,7.2745]
[1767030828095,0.00085993,123.85,123.83,0.05574428]
[1767030829083,3.48,123.88,123.83,0.05574428]
[1767030829283,3.48,123.9,123.83,0.05574428]
[1767030829492,3.48,123.9,123.83,95.51574428]
[1767030830199,0.05978622,123.88,123.83,95.51574428]
[1767030830690,0.05978622,123.88,123.85,7.2738]
[1767030833193,0.05978622,123.88,123.83,95.51574428]
[1767030833194,3.53978622,123.88,123.83,102.79024428]
[1767030839503,0.05978622,123.88,123.84,7.2745]
[1767030840197,3.27,123.93,123.87,7.2726]
[1767030840799,3.27,123.93,123.86,95.46]
[1767030841393,0.05326884,123.91,123.88,0.05469824]
[1767030841793,3.32326884,123.91,123.84,95.46]
[1767030842403,3.27,123.89,123.84,95.46]
[1767030842902,3.27,123.89,123.85,0.0616457]
[1767030842903,0.05155758,123.88,123.85,0.0616457]
[1767030849510,3.27,123.91,123.85,7.3355457]
[1767030849710,3.27,123.91,123.85,7.2739]
[1767030850501,0.05780651,123.89,123.87,0.05476337]
[1767030856824,3.40780651,123.89,123.82,212.86470529]
[1767030857117,3.40780651,123.89,123.82,99.69040529]
[1767030857715,3.40780651,123.89,123.84,0.0590158]
[1767030859417,10.67940651,123.89,123.84,0.0590158]
[1767030859613,3.35,123.88,123.84,0.0590158]
[1767030861212,0.05780651,123.89,123.84,0.0590158]
[1767030861411,3.40780651,123.89,123.84,0.0590158]
[1767030862619,3.40780651,123.89,123.84,7.3334158]
[1767030863120,3.40780651,123.89,123.84,0.0590158]
[1767030864116,3.40780651,123.89,123.82,95.46]
[1767030864318,3.40780651,123.89,123.79,95.44]
[1767030864616,3.35,123.88,123.79,98.14756051]
[1767030865421,0.06216596,123.85,123.82,0.05358202]
[1767030865610,0.00216596,123.85,123.82,0.05358202]
[1767030866716,0.00216596,123.85,123.82,7.32908202]
[1767030875728,0.00216596,123.85,123.82,0.05358202]
[1767030893240,3.51216596,123.85,123.76,10.06858969]
[1767030893435,3.51,123.85,123.77,98.16756051]
[1767030893935,3.51,123.85,123.77,2.70756051]
[1767030894141,3.51,123.85,123.77,98.16756051]
[1767030894341,0.0570968,123.82,123.8,0.05710164]
[1767030901146,3.5770968,123.82,123.77,102.7386]
[1767030901938,3.5770968,123.82,123.78,0.05731947]
[1767030904046,0.0570968,123.82,123.78,7.33501947]
[1767030904244,0.0570968,123.82,123.78,10.04257998]
[1767030905352,0.0570968,123.82,123.78,7.33501947]
[1767030905551,0.0570968,123.82,123.78,10.04257998]
[1767030907642,0.0570968,123.82,123.78,7.33501947]
[1767030912953,0.0570968,123.82,123.78,0.05731947]
[1767030915645,3.4870968,123.82,123.78,0.05731947]
[1767030926066,10.7627968,123.82,123.78,0.05731947]
[1767030926265,3.43,123.81,123.78,0.05731947]
[1767030928863,3.43,123.81,123.75,7.2798]
[1767030929062,3.43,123.8,123.73,7.2805]
[1767030929673,3.43,123.78,123.72,95.48]
[1767030929867,0.05621354,123.76,123.74,0.05558157]
[1767030930865,3.48621354,123.76,123.7,95.48]
[1767030931770,3.48621354,123.76,123.7,95.5]
[1767030931961,3.48621354,123.76,123.72,0.05921503]
[1767030950482,3.48621354,123.76,123.7,102.8025]
[1767030950883,3.48621354,123.76,123.7,7.2825]
[1767030951275,3.2,123.75,123.65,24.29]
[1767030951480,5.486e-05,123.71,123.65,233.1416]
[1767030951873,5.486e-05,123.71,123.65,137.6216]
[1767030952077,5.486e-05,123.71,123.66,95.52]
[1767030952482,0.05581059,123.7,123.67,0.05665029]
[1767030952682,0.05581059,123.7,123.67,7.34115029]
[1767030962585,3.44,123.74,123.68,7.2838]
[1767030963584,0.05894758,123.72,123.7,0.05993894]
[1767030964391,3.44,123.77,123.7,0.05993894]
[1767030964586,3.44,123.77,123.69,95.56]
[1767030964785,3.44,123.77,123.7,95.56]
[1767030965385,0.06038412,123.75,123.72,0.06234058]
[1767030975091,3.50038412,123.75,123.72,0.00234058]
[1767030975800,10.78018412,123.75,123.72,0.00234058]
[1767030976001,3.37,123.74,123.72,0.00234058]
[1767030992409,0.06038412,123.75,123.72,0.00234058]
[1767030992593,3.43038412,123.75,123.72,0.00234058]
[1767031010118,3.43038412,123.75,123.69,7.2828]
[1767031011114,3.43038412,123.75,123.71,0.05212313]
[1767031011716,3.26,123.74,123.71,0.05212313]
[1767031020527,3.45,123.73,123.65,6.14299208]
[1767031021028,3.45,123.73,123.65,3.43]
[1767031021521,0.0567934,123.7,123.68,0.06202712]
[1767031025137,3.45,123.76,123.69,3.43]
[1767031025329,3.45,123.76,123.7,6.14299208]
[1767031026034,0.05976683,123.74,123.72,0.05480752]
[1767031029545,0.05976683,123.74,123.68,9.99669208]
[1767031029546,3.45,123.73,123.68,9.99669208]
[1767031030535,3.45,123.73,123.69,0.0564081]
[1767031031846,0.05976683,123.74,123.69,10.7697081]
[1767031032145,3.50976683,123.74,123.69,10.7697081]
[1767031034652,3.50976683,123.74,123.67,7.284]
[1767031034851,3.45,123.74,123.67,3.43]